bitfinex/quotes_BTCUSD_20250208
["timestamp","ask_amount","ask_price","bid_price","bid_amount"]
[1739042571403,0.00055745,96760.0,96759.0,0.33937724]
[1739042571622,0.00055745,96760.0,96759.0,0.34637724]
[1739042572356,0.00055745,96760.0,96759.0,0.35237724]
[1739042572509,0.00055745,96760.0,96759.0,0.01707724]
[1739042572708,0.00055745,96760.0,96759.0,0.01007724]
[1739042572912,0.00055745,96760.0,96759.0,0.01707724]
[1739042573122,0.00055745,96760.0,96759.0,0.17210124]
[1739042574205,5.745e-05,96760.0,96759.0,0.17210124]
[1739042574961,5.745e-05,96760.0,96759.0,0.16803048]
[1739042575164,5.745e-05,96760.0,96759.0,0.17310647]
[1739042580962,5.745e-05,96760.0,96759.0,0.01808247]
[1739042581167,5.745e-05,96760.0,96759.0,0.007]
[1739042582025,0.3349831,96760.0,96759.0,0.01808247]
[1739042582167,0.3848831,96760.0,96759.0,0.007]
[1739042582386,1.1410891,96760.0,96759.0,0.007]
[1739042582568,0.9666751,96760.0,96759.0,0.007]
[1739042582772,0.9204311,96760.0,96759.0,0.007]
[1739042582970,0.9022731,96760.0,96759.0,0.007]
[1739042583175,0.9022731,96760.0,96759.0,0.004]
[1739042583374,0.9082731,96760.0,96759.0,0.004]
[1739042583681,0.155037,96751.0,96750.0,0.00022386]
[1739042584298,0.25754065,96751.0,96750.0,0.00022386]
[1739042585483,0.25954065,96751.0,96750.0,0.00022386]
[1739042587171,0.40954065,96751.0,96750.0,0.00022386]
[1739042587579,0.75699465,96751.0,96750.0,0.00022386]
[1739042587775,0.83729465,96751.0,96750.0,0.00022386]
[1739042588034,0.86762893,96751.0,96750.0,0.00022386]
[1739042589023,0.85022031,96751.0,96750.0,0.00022386]
[1739042589231,0.03033428,96751.0,96750.0,0.01022386]
[1739042589489,5.745e-05,96760.0,96759.0,0.01]
[1739042589641,5.745e-05,96760.0,96759.0,0.00977614]
[1739042589841,5.745e-05,96760.0,96750.0,0.00022386]
[1739042589842,0.00022386,96752.0,96750.0,0.00022386]
[1739042590043,0.00022386,96751.0,96750.0,0.15526186]
[1739042590469,0.00022386,96751.0,96750.0,0.15626186]
[1739042590688,0.00022386,96751.0,96750.0,0.15726186]
[1739042590809,0.00022386,96751.0,96750.0,0.15526186]
[1739042591121,0.00022386,96751.0,96750.0,0.01211467]
[1739042593137,0.14337105,96750.0,96749.0,0.155039]
[1739042593642,0.14337105,96750.0,96747.0,0.155042]
[1739042594228,0.29841005,96750.0,96742.0,0.15505]
[1739042594387,0.14337105,96750.0,96739.0,0.155055]
[1739042594590,0.29840905,96750.0,96749.0,0.002]
[1739042595208,0.14337105,96750.0,96732.0,0.023]
[1739042595496,0.14337105,96750.0,96710.0,0.42569788]
[1739042595497,0.00022386,96734.0,96721.0,0.0794]
[1739042595696,0.155068,96732.0,96728.0,0.08274122]
[1739042595892,0.00022386,96734.0,96719.0,0.023]
[1739042596146,0.00022386,96734.0,96724.0,0.155079]
[1739042596341,0.155072,96730.0,96717.0,0.206788]
[1739042596545,0.206754,96733.0,96718.0,0.206786]
[1739042596747,0.15530686,96722.0,96721.0,0.004]
[1739042596952,0.00022386,96716.0,96710.0,0.07962386]
[1739042597127,0.00022386,96716.0,96715.0,0.155094]
[1739042597330,0.00022386,96716.0,96714.0,0.155096]
[1739042597689,0.00022386,96716.0,96715.0,0.155094]
[1739042598364,0.00022386,96716.0,96715.0,0.158094]
[1739042599554,0.00022386,96716.0,96715.0,0.160094]
[1739042599763,0.00022386,96717.0,96716.0,0.155092]
[1739042600801,0.15506,96737.0,96731.0,0.00977614]
[1739042600974,0.15,96740.0,96731.0,0.00977614]
[1739042601177,0.155066,96733.0,96731.0,0.00977614]
[1739042601579,0.178067,96732.0,96731.0,0.00977614]
[1739042602070,0.178067,96732.0,96731.0,0.00477614]
[1739042602467,0.181067,96732.0,96731.0,0.00477614]
[1739042603085,0.184067,96732.0,96731.0,0.00477614]
[1739042603291,0.181067,96732.0,96731.0,0.00477614]
[1739042604211,0.003,96732.0,96731.0,0.40869651]
[1739042604822,0.006,96732.0,96731.0,0.40869651]
[1739042605030,0.14847765,96750.0,96731.0,0.25362751]
[1739042605234,0.14847765,96750.0,96733.0,0.023]
[1739042605438,0.15167915,96750.0,96744.0,0.155047]
[1739042605646,0.15167915,96750.0,96745.0,0.155046]
[1739042605850,0.15167915,96750.0,96738.0,0.568543]
[1739042606054,0.15167915,96750.0,96746.0,0.155044]
[1739042606376,0.15167915,96750.0,96749.0,0.15504]
[1739042606815,0.15167915,96750.0,96749.0,0.15549075]
[1739042607173,0.15167915,96750.0,96749.0,0.00045075]
[1739042607601,0.15167915,96750.0,96749.0,0.15549075]
[1739042608235,0.15167915,96750.0,96749.0,0.00045075]
[1739042608612,0.15167915,96750.0,96749.0,0.00145075]
[1739042609528,0.15167915,96750.0,96749.0,0.00045075]
[1739042610089,0.15167915,96750.0,96749.0,0.00145075]
[1739042610799,0.14645529,96750.0,96749.0,0.16126689]
[1739042610951,0.14645529,96750.0,96749.0,0.18426689]
[1739042611152,0.14645529,96750.0,96749.0,0.26196689]
[1739042612211,0.14645529,96750.0,96749.0,0.36447054]
[1739042612764,0.14645529,96750.0,96749.0,0.3596944]
[1739042612962,0.14645529,96750.0,96749.0,0.36347054]
[1739042613272,0.14645529,96750.0,96749.0,0.25719075]
[1739042613487,0.14645529,96750.0,96749.0,0.18049075]
[1739042613680,0.14645529,96750.0,96749.0,0.025]
[1739042614112,0.14645529,96750.0,96749.0,0.024]
[1739042614496,0.14645529,96750.0,96749.0,0.025]
[1739042614723,0.14645529,96750.0,96749.0,0.17904]
[1739042615194,0.14645529,96750.0,96749.0,0.18604]
[1739042615632,0.14645529,96750.0,96749.0,0.19204]
[1739042617255,0.14645529,96750.0,96749.0,0.19681614]
[1739042617456,0.14645529,96750.0,96749.0,0.19204]
[1739042619897,0.0033081,96750.0,96749.0,0.19204]
[1739042621987,0.0033081,96750.0,96749.0,0.16904]
[1739042623495,0.0033081,96750.0,96749.0,0.16204]
[1739042623792,0.0033081,96750.0,96749.0,0.16804]
[1739042624172,0.0033081,96750.0,96749.0,0.15504]
[1739042624374,0.0033081,96750.0,96749.0,0.16004]
[1739042624565,0.0033081,96750.0,96749.0,0.16604]
[1739042626347,0.00853196,96750.0,96749.0,0.011]
[1739042626544,0.16356996,96750.0,96749.0,0.011]
[1739042626752,0.05311046,96750.0,96749.0,0.011]
[1739042626959,0.20814846,96750.0,96749.0,0.011]
[1739042627170,0.00853196,96750.0,96743.0,0.155049]
[1739042627367,0.155045,96746.0,96734.0,0.206752]
[1739042627629,0.1582465,96746.0,96740.0,0.155054]
[1739042628064,0.206729,96745.0,96733.0,0.5372]
[1739042628285,0.206729,96745.0,96731.0,0.20698086]
[1739042628286,0.206731,96744.0,96732.0,0.02322428]
[1739042628531,0.2099285,96746.0,96732.0,0.02322428]
[1739042628732,0.0032015,96744.0,96732.0,0.00022428]
[1739042628925,0.0032015,96744.0,96738.0,0.155057]
[1739042629093,0.00522386,96735.0,96732.0,0.00022428]
[1739042629296,0.00522386,96735.0,96734.0,0.002]
[1739042631060,0.00522386,96734.0,96732.0,0.00022428]
[1739042631594,0.00522386,96734.0,96732.0,0.00222428]
[1739042631804,0.00522386,96734.0,96732.0,0.15529128]
[1739042632005,0.00522386,96734.0,96732.0,0.00022428]
[1739042632190,0.00522386,96734.0,96733.0,0.155066]
[1739042633528,0.00522386,96734.0,96733.0,0.159066]
[1739042634372,0.00522386,96734.0,96733.0,0.004]
[1739042635031,0.00522386,96734.0,96733.0,0.162066]
[1739042636540,0.03908923,96737.0,96736.0,0.155061]
[1739042636675,0.00842536,96737.0,96736.0,0.155061]
[1739042637081,0.00842536,96737.0,96735.0,0.155062]
[1739042637306,0.00842536,96737.0,96736.0,0.155061]
[1739042637503,0.00522386,96736.0,96735.0,0.155062]
[1739042638807,0.00522386,96736.0,96735.0,0.159062]
[1739042639418,0.00522386,96736.0,96735.0,0.157062]
[1739042639642,0.00522386,96736.0,96735.0,0.159062]
[1739042641231,0.00522386,96736.0,96735.0,0.15928628]
[1739042642050,0.00522386,96736.0,96735.0,0.00422428]
[1739042642164,0.0032015,96737.0,96736.0,0.14982214]
[1739042642775,0.0032015,96737.0,96736.0,0.30488314]
[1739042642993,0.0032015,96737.0,96736.0,0.14982214]
[1739042643420,0.0032015,96737.0,96736.0,0.15182214]
[1739042644327,0.0032015,96737.0,96736.0,0.15382214]
[1739042645384,0.1582605,96737.0,96736.0,0.15382214]
[1739042645587,0.1582605,96737.0,96736.0,0.004]
[1739042647207,0.26076415,96737.0,96736.0,0.004]
[1739042647562,0.84922115,96737.0,96736.0,0.004]
[1739042647760,1.20237415,96737.0,96736.0,0.004]
[1739042648104,0.15,96736.0,96735.0,0.00022428]
[1739042648309,1.42002565,96736.0,96735.0,0.00022428]
[1739042648516,1.37055965,96736.0,96735.0,0.00022428]
[1739042648721,1.4730633,96736.0,96735.0,0.00022428]
[1739042650629,1.4780633,96736.0,96735.0,0.00122428]
[1739042650859,1.4780633,96736.0,96735.0,0.00222428]
[1739042651059,1.4196713,96736.0,96735.0,0.00222428]
[1739042651265,1.4196713,96736.0,96711.0,0.08274122]
[1739042651266,0.155099,96712.0,96711.0,0.08274122]
[1739042651468,0.11527102,96721.0,96711.0,0.08274122]
[1739042651671,0.206766,96728.0,96715.0,0.155094]
[1739042651895,0.15,96729.0,96713.0,0.155097]
[1739042652101,0.0076,96734.0,96712.0,0.081]
[1739042652102,0.11527102,96722.0,96712.0,0.081]
[1739042652294,0.155091,96717.0,96712.0,0.081]
[1739042652573,6.984e-05,96717.0,96712.0,0.081]
[1739042653009,6.984e-05,96717.0,96712.0,0.236098]
[1739042653233,0.155096,96715.0,96711.0,0.002]
[1739042653367,0.155094,96715.0,96711.0,0.002]
[1739042653577,6.984e-05,96717.0,96711.0,0.002]
[1739042653779,0.155096,96715.0,96711.0,0.002]
[1739042653977,6.984e-05,96717.0,96711.0,0.002]
[1739042654219,6.984e-05,96717.0,96708.0,0.178106]
[1739042654441,6.984e-05,96717.0,96708.0,0.178105]
[1739042654655,6.984e-05,96717.0,96708.0,0.023]
[1739042654837,6.984e-05,96717.0,96710.0,0.15532586]
[1739042655168,6.984e-05,96717.0,96711.0,0.023]
[1739042655508,0.15516084,96717.0,96710.0,0.00022386]
[1739042655727,0.206791,96716.0,96710.0,0.00022386]
[1739042655950,6.984e-05,96717.0,96710.0,0.00022386]
[1739042656182,6.984e-05,96717.0,96716.0,0.114]
[1739042656397,6.984e-05,96717.0,96716.0,0.1525]
[1739042656601,6.984e-05,96717.0,96716.0,0.15353384]
[1739042656811,6.984e-05,96717.0,96716.0,0.1525]
[1739042658059,6.984e-05,96717.0,96716.0,0.1565]
[1739042658404,0.155066,96733.0,96720.0,0.155085]
[1739042658624,0.155072,96729.0,96717.0,0.178091]
[1739042658834,0.155068,96732.0,96721.0,0.155084]
[1739042659040,0.3102148,96736.0,96723.0,0.155081]
[1739042659248,0.1551528,96736.0,96720.0,0.023]
[1739042659448,0.1551528,96736.0,96723.0,0.023]
[1739042659620,0.1551528,96736.0,96725.0,0.155078]
[1739042659827,0.1551528,96736.0,96726.0,0.01106825]
[1739042660432,0.002,96733.0,96726.0,0.01106825]
[1739042661048,0.002,96733.0,96723.0,0.023]
[1739042661411,0.1551528,96736.0,96724.0,0.01107048]
[1739042661789,0.002,96733.0,96724.0,0.01107048]
[1739042662200,0.002,96733.0,96725.0,0.155078]
[1739042662542,0.002,96733.0,96726.0,0.16614425]
[1739042662744,0.002,96733.0,96728.0,0.155073]
[1739042663150,0.002,96733.0,96729.0,0.0110649]
[1739042663591,0.002,96733.0,96730.0,0.01106378]
[1739042663801,0.004,96733.0,96727.0,0.155074]
[1739042664006,0.002,96733.0,96728.0,0.01106602]
[1739042664412,0.004,96733.0,96728.0,0.01106602]
[1739042664613,0.002,96733.0,96728.0,0.01106602]
[1739042665020,0.004,96733.0,96728.0,0.01106602]
[1739042665220,0.002,96733.0,96728.0,0.01106602]
[1739042665666,0.004,96733.0,96729.0,0.155072]
[1739042666031,0.004,96733.0,96728.0,0.01106602]
[1739042666421,0.0041068,96733.0,96727.0,0.155074]
[1739042667118,0.0041068,96733.0,96728.0,0.16613902]
[1739042667347,0.0001068,96733.0,96732.0,0.01]
[1739042667756,0.0021068,96733.0,96732.0,0.01106155]
[1739042667930,0.0021068,96733.0,96728.0,0.155073]
[1739042668134,0.004427,96733.0,96732.0,0.02106155]
[1739042668358,0.006427,96733.0,96728.0,0.155073]
[1739042668557,0.004427,96733.0,96732.0,0.01106155]
[1739042668778,0.004427,96733.0,96728.0,0.155073]
[1739042668986,0.004427,96733.0,96732.0,0.01106155]
[1739042669192,0.004427,96733.0,96724.0,0.206772]
[1739042669390,0.004427,96733.0,96721.0,0.206779]
[1739042669391,0.006427,96733.0,96722.0,0.023]
[1739042669592,0.006427,96733.0,96730.0,0.155069]
[1739042669993,0.006427,96733.0,96731.0,0.01106267]
[1739042670515,0.006427,96733.0,96727.0,0.155075]
[1739042670676,0.002427,96733.0,96728.0,0.155073]
[1739042670890,0.002427,96733.0,96728.0,0.16613902]
[1739042671230,0.004427,96733.0,96728.0,0.01106602]
[1739042671562,0.006427,96733.0,96726.0,0.155075]
[1739042671782,0.006427,96733.0,96719.0,0.206783]
[1739042671783,0.05971791,96733.0,96719.0,0.206783]
[1739042671978,0.206756,96732.0,96716.0,0.12963525]
[1739042672191,0.155076,96727.0,96718.0,0.155089]
[1739042672757,0.11527102,96730.0,96719.0,0.01107606]
[1739042672959,0.206773,96724.0,96716.0,0.12963525]
[1739042673164,0.11759122,96730.0,96720.0,0.01107494]
[1739042673496,0.11759122,96730.0,96716.0,0.12963525]
[1739042673497,0.11759122,96730.0,96716.0,0.08113525]
[1739042673698,0.155083,96722.0,96716.0,0.08113525]
[1739042673903,0.155084,96722.0,96717.0,0.01107829]
[1739042674107,0.0023202,96722.0,96717.0,0.01107829]
[1739042674313,0.206781,96721.0,96717.0,0.01107829]
[1739042674484,0.1574042,96722.0,96717.0,0.01107829]
[1739042675118,0.1574042,96722.0,96717.0,0.01307829]
[1739042675874,0.155087,96720.0,96717.0,0.01307829]
[1739042676078,0.0023202,96720.0,96717.0,0.01307829]
[1739042676883,0.0023202,96720.0,96717.0,0.01107829]
[1739042677247,0.0023202,96720.0,96717.0,0.01507829]
[1739042677675,0.0023202,96720.0,96717.0,0.01307829]
[1739042677878,0.0023202,96720.0,96717.0,0.01607829]
[1739042678517,0.0023202,96720.0,96717.0,0.01630257]
[1739042680328,0.0023202,96720.0,96717.0,0.17139257]
[1739042680504,0.0023202,96720.0,96717.0,0.01630257]
[1739042682685,0.0023202,96720.0,96717.0,0.01330257]
[1739042683302,0.0023202,96720.0,96717.0,0.01530257]
[1739042683543,0.0023202,96720.0,96717.0,0.01330257]
[1739042683789,0.0023202,96720.0,96717.0,0.01730257]
[1739042685779,0.0023202,96720.0,96717.0,0.01530257]
[1739042686318,0.04146122,96720.0,96717.0,0.01230257]
[1739042686539,0.04146122,96720.0,96717.0,0.01330257]
[1739042687283,0.0023202,96720.0,96717.0,0.00222428]
[1739042687682,0.0023202,96720.0,96718.0,0.01107718]
[1739042688900,0.0023202,96720.0,96718.0,0.01207718]
[1739042689868,0.0023202,96720.0,96718.0,0.01307718]
[1739042690586,0.0023202,96720.0,96719.0,0.023]
[1739042690739,0.0023202,96720.0,96719.0,0.02403381]
[1739042690940,0.0023202,96720.0,96719.0,0.03407606]
[1739042691901,0.0023202,96720.0,96719.0,0.03507606]
[1739042692505,0.0023202,96720.0,96719.0,0.03607606]
[1739042693307,0.0023202,96720.0,96719.0,0.03407606]
[1739042693770,0.0023202,96720.0,96719.0,0.03507606]
[1739042694208,0.0023202,96720.0,96719.0,0.03707606]
[1739042695336,0.0023202,96720.0,96719.0,0.03607606]
[1739042695840,0.0023202,96720.0,96719.0,0.03707606]
[1739042695991,0.0023202,96720.0,96719.0,0.03507606]
[1739042696397,0.0023202,96720.0,96719.0,0.03607606]
[1739042696954,0.0023202,96720.0,96719.0,0.03707606]
[1739042697107,0.0023202,96720.0,96719.0,0.03507606]
[1739042697526,0.0023202,96720.0,96719.0,0.03607606]
[1739042697728,0.0023202,96720.0,96719.0,0.01207606]
[1739042698253,0.0023202,96720.0,96719.0,0.01307606]
[1739042698482,0.0023202,96720.0,96719.0,0.01407606]
[1739042698960,0.0023202,96720.0,96719.0,0.01307606]
[1739042699144,0.0023202,96720.0,96719.0,0.01407606]
[1739042699311,0.0023202,96720.0,96719.0,0.01207606]
[1739042700337,0.0023202,96720.0,96719.0,0.01307606]
[1739042700914,0.0023202,96720.0,96719.0,0.01407606]
[1739042701122,0.0023202,96720.0,96719.0,0.01307606]
[1739042701735,0.0023202,96720.0,96719.0,0.01207606]
[1739042701947,0.0023202,96720.0,96719.0,0.01307606]
[1739042702333,0.0023202,96720.0,96719.0,0.17816406]
[1739042702579,0.0023202,96720.0,96719.0,0.16916406]
[1739042702809,0.0023202,96720.0,96719.0,0.16816406]
[1739042703233,0.0023202,96720.0,96719.0,0.16916406]
[1739042703443,0.0023202,96720.0,96719.0,0.16716406]
[1739042703655,0.0023202,96720.0,96719.0,0.16916406]
[1739042704407,0.0023202,96720.0,96719.0,0.16716406]
[1739042704868,0.0023202,96720.0,96719.0,0.16616406]
[1739042705049,0.0023202,96720.0,96719.0,0.16716406]
[1739042705254,0.0023202,96720.0,96719.0,0.01207606]
[1739042705572,0.0023202,96720.0,96719.0,0.01107606]
[1739042705950,0.0023202,96720.0,96719.0,0.26103721]
[1739042706205,0.0023202,96720.0,96719.0,0.24896115]
[1739042706409,0.0023202,96720.0,96719.0,0.26003721]
[1739042706597,0.0023202,96720.0,96719.0,0.26103721]
[1739042706769,0.0023202,96720.0,96719.0,0.26003721]
[1739042706971,0.0023202,96720.0,96719.0,0.26103721]
[1739042707343,0.0023202,96720.0,96719.0,0.26003721]
[1739042707544,0.0023202,96720.0,96719.0,0.10594921]
[1739042707769,0.0023202,96720.0,96719.0,0.01307606]
[1739042708544,0.0023202,96720.0,96719.0,0.16916406]
[1739042708924,0.0023202,96720.0,96719.0,0.16616406]
[1739042709335,0.0023202,96720.0,96719.0,0.16816406]
[1739042709731,0.0023202,96720.0,96719.0,0.16916406]
[1739042710146,0.0023202,96720.0,96719.0,0.16716406]
[1739042710310,0.0023202,96720.0,96719.0,0.16816406]
[1739042710515,0.0023202,96720.0,96719.0,0.16916406]
[1739042710721,0.0023202,96720.0,96719.0,0.16816406]
[1739042711939,0.0023202,96720.0,96719.0,0.16916406]
[1739042712089,0.0023202,96720.0,96719.0,0.16816406]
[1739042712292,0.0023202,96720.0,96719.0,0.16716406]
[1739042712507,0.0023202,96720.0,96719.0,0.16816406]
[1739042713022,0.0023202,96720.0,96719.0,0.16916406]
[1739042713634,0.0023202,96720.0,96719.0,0.16716406]
[1739042713875,0.0023202,96720.0,96719.0,0.16916406]
[1739042714840,0.0023202,96720.0,96719.0,0.01407606]
[1739042715046,0.0023202,96720.0,96719.0,0.16616406]
[1739042715223,0.0023202,96720.0,96719.0,0.16716406]
[1739042715839,0.0023202,96720.0,96719.0,0.16838834]
[1739042716323,0.0023202,96720.0,96719.0,0.16738834]
[1739042716501,0.0023202,96720.0,96719.0,0.01330034]
[1739042716708,0.0023202,96720.0,96719.0,0.01230034]
[1739042717116,0.0023202,96720.0,96719.0,0.01130034]
[1739042717757,0.0023202,96720.0,96719.0,0.16638834]
[1739042718168,0.0023202,96720.0,96719.0,0.25926149]
[1739042718377,0.0023202,96720.0,96719.0,0.26026149]
[1739042718575,0.0023202,96720.0,96719.0,0.26126149]
[1739042719383,0.0023202,96720.0,96719.0,0.10617349]
[1739042722671,0.00221383,96720.0,96719.0,0.10617349]
[1739042724434,0.00221383,96720.0,96719.0,0.16838834]
[1739042724748,0.00221383,96720.0,96719.0,0.01330034]
[1739042727278,0.02067739,96720.0,96719.0,0.01330034]
[1739042727499,0.17576339,96720.0,96719.0,0.01330034]
[1739042727683,0.17576339,96720.0,96719.0,0.10617349]
[1739042728302,0.17576339,96720.0,96719.0,0.10517349]
[1739042728892,0.15729983,96720.0,96719.0,0.10517349]
[1739042729296,0.15729983,96720.0,96719.0,0.10617349]
[1739042730327,0.15729983,96720.0,96719.0,0.00222428]
[1739042730564,0.15729983,96720.0,96719.0,0.00122428]
[1739042731058,0.15729983,96720.0,96719.0,0.00022428]
[1739042732310,0.15729983,96720.0,96719.0,0.01130034]
[1739042732518,0.00221383,96720.0,96719.0,0.01130034]
[1739042733867,0.00221383,96720.0,96719.0,0.01022428]
[1739042733993,0.00221383,96720.0,96719.0,0.01130034]
[1739042734200,0.00221383,96720.0,96719.0,0.00022428]
[1739042734408,0.00221383,96720.0,96719.0,0.01130034]
[1739042734677,0.00221383,96720.0,96719.0,0.00022428]
[1739042735415,0.00221383,96720.0,96719.0,0.01022428]
[1739042735620,0.00221383,96720.0,96719.0,0.00022428]
[1739042736116,0.00221383,96720.0,96719.0,0.02130034]
[1739042736368,0.00221383,96720.0,96719.0,0.01130034]
[1739042736569,0.00276463,96720.0,96719.0,0.01130034]
[1739042738894,0.00287143,96720.0,96719.0,0.02130034]
[1739042739118,0.00287143,96720.0,96719.0,0.09140034]
[1739042739571,0.00287143,96720.0,96719.0,0.10140034]
[1739042739773,0.00287143,96720.0,96719.0,0.09140034]
[1739042739916,0.00287143,96720.0,96719.0,0.10140034]
[1739042741290,0.00287143,96720.0,96719.0,0.11543416]
[1739042741617,0.00287143,96720.0,96719.0,0.11843416]
[1739042741823,0.00287143,96720.0,96719.0,0.22093781]
[1739042742023,0.00287143,96720.0,96719.0,0.54920399]
[1739042742231,0.00287143,96720.0,96719.0,0.5833796]
[1739042743559,0.00287143,96720.0,96719.0,0.5933796]
[1739042743994,0.00287143,96720.0,96719.0,0.6415796]
[1739042744331,0.00287143,96720.0,96719.0,0.66217347]
[1739042744533,0.00287143,96720.0,96719.0,1.03007347]
[1739042744742,0.00287143,96720.0,96719.0,1.01107347]
[1739042745176,0.00287143,96720.0,96719.0,1.01007347]
[1739042745355,0.00287143,96720.0,96719.0,1.00807347]
[1739042745739,0.00287143,96720.0,96719.0,1.0024796]
[1739042746137,0.00287143,96720.0,96719.0,0.9934796]
[1739042746332,0.00287143,96720.0,96719.0,1.0024796]
[1739042747045,0.00287143,96720.0,96719.0,0.9934796]
[1739042747395,0.00287143,96720.0,96719.0,1.0024796]
[1739042747799,0.00287143,96720.0,96719.0,0.7945796]
[1739042748869,0.02368716,96748.0,96719.0,0.7945796]
[1739042749118,0.155038,96751.0,96723.0,0.023]
[1739042749402,0.155038,96751.0,96741.0,0.155051]
[1739042749738,0.02306363,96800.0,96742.0,0.16610039]
[1739042749739,0.155034,96753.0,96742.0,0.16610039]
[1739042749994,0.155036,96752.0,96742.0,0.16610039]
[1739042751006,0.155037,96751.0,96742.0,0.16610039]
[1739042751185,0.155037,96751.0,96742.0,0.17010039]
[1739042751885,0.155037,96751.0,96742.0,0.16610039]
[1739042752300,0.155037,96751.0,96742.0,0.16910039]
[1739042752505,0.155037,96751.0,96742.0,0.16610039]
[1739042753310,0.155039,96750.0,96742.0,0.16610039]
[1739042753513,0.155039,96750.0,96742.0,0.17010039]
[1739042753726,0.155039,96750.0,96742.0,0.17510039]
[1739042754139,0.155039,96750.0,96742.0,0.17010039]
[1739042754351,0.206709,96754.0,96742.0,0.01505039]
[1739042754581,0.06004132,96753.0,96735.0,0.206748]
[1739042754788,0.155036,96752.0,96743.0,0.155049]
[1739042754988,0.001,96751.0,96743.0,0.155049]
[1739042755182,0.0009,96751.0,96744.0,0.01104816]
[1739042755652,0.0009,96751.0,96744.0,0.08934816]
[1739042755819,0.003,96754.0,96751.0,0.155037]
[1739042756241,0.003,96754.0,96752.0,0.01103924]
[1739042756443,0.02335003,96755.0,96752.0,0.01103924]
[1739042756656,0.155025,96759.0,96752.0,0.01103924]
[1739042757041,0.155026,96758.0,96752.0,0.01103924]
[1739042757399,0.155026,96758.0,96749.0,0.155039]
[1739042757533,0.155026,96758.0,96748.0,0.206721]
[1739042757534,0.155026,96758.0,96753.0,0.01103812]
[1739042757744,0.155026,96758.0,96750.0,0.155037]
[1739042757951,0.155026,96758.0,96757.0,0.01]
[1739042758154,0.155028,96757.0,96749.0,0.15504]
[1739042758359,0.003,96758.0,96757.0,0.01]
[1739042758920,0.006,96758.0,96757.0,0.02103366]
[1739042759133,0.003,96758.0,96757.0,0.02103366]
[1739042759595,0.006,96758.0,96757.0,0.02103366]
[1739042759994,0.006,96758.0,96757.0,0.01]
[1739042760375,0.006,96758.0,96757.0,0.02103366]
[1739042760557,0.006,96758.0,96757.0,0.01]
[1739042760744,0.15547598,96759.0,96758.0,0.01]
[1739042760745,0.00045098,96759.0,96758.0,0.01]
[1739042761146,0.00045098,96759.0,96758.0,0.02103254]
[1739042762414,0.00145098,96759.0,96758.0,0.02103254]
[1739042762817,0.00145098,96759.0,96758.0,0.17605754]
[1739042763019,0.00145098,96759.0,96758.0,0.01103254]
[1739042763386,0.00145098,96759.0,96750.0,0.206718]
[1739042763585,0.00155778,96759.0,96754.0,0.155031]
[1739042764002,0.00155778,96759.0,96755.0,0.01103589]
[1739042764401,0.00255778,96759.0,96757.0,0.155027]
[1739042764600,0.00255778,96759.0,96755.0,0.15503]
[1739042764801,0.00055778,96759.0,96758.0,0.01103254]
[1739042765105,0.00155778,96759.0,96758.0,0.01103254]
[1739042765327,0.00055778,96759.0,96753.0,0.361743]
[1739042765520,0.00055778,96759.0,96754.0,0.01103701]
[1739042765749,0.00155778,96759.0,96754.0,0.01103701]
[1739042765972,0.155025,96758.0,96754.0,0.01103701]
[1739042766172,0.00155778,96759.0,96751.0,0.155035]
[1739042766378,0.155026,96758.0,96755.0,0.01103589]
[1739042766555,0.00255778,96759.0,96746.0,0.023]
[1739042766758,0.15758178,96759.0,96751.0,0.155036]
[1739042767094,0.15758178,96759.0,96752.0,0.01103924]
[1739042767393,0.15503,96756.0,96752.0,0.01103924]
[1739042767622,0.00255778,96759.0,96752.0,0.01103924]
[1739042767800,0.01933791,96755.0,96749.0,0.155039]
[1739042768020,0.01933791,96755.0,96746.0,0.206726]
[1739042768173,0.01933791,96755.0,96750.0,0.01104147]
[1739042768384,0.01933791,96755.0,96745.0,0.3293]
[1739042768584,0.01933791,96755.0,96751.0,0.01104035]
[1739042768790,0.01933791,96754.0,96749.0,0.155039]
[1739042768985,0.01933791,96754.0,96752.0,0.01103924]
[1739042769220,0.01933791,96754.0,96749.0,0.155039]
[1739042769417,0.01933791,96754.0,96753.0,0.01103812]
[1739042769660,0.01933791,96754.0,96750.0,0.001]
[1739042770156,0.155027,96758.0,96751.0,0.01104035]
[1739042770569,0.20725678,96759.0,96753.0,0.001]
[1739042770711,0.155029,96756.0,96753.0,0.001]
[1739042770907,0.155029,96756.0,96754.0,0.01103701]
[1739042771112,0.00055778,96759.0,96750.0,0.001]
[1739042771323,0.00055778,96759.0,96751.0,0.01104035]
[1739042771522,0.155025,96758.0,96750.0,0.155037]
[1739042771730,0.00055778,96759.0,96751.0,0.01104035]
[1739042772306,0.206701,96758.0,96751.0,0.01104035]
[1739042772504,0.00055778,96759.0,96752.0,0.155035]
[1739042772702,0.003,96756.0,96752.0,0.16607424]
[1739042773931,0.155026,96758.0,96752.0,0.01103924]
[1739042774286,0.155026,96758.0,96747.0,0.155043]
[1739042774481,0.15558178,96759.0,96753.0,0.01103812]
[1739042774779,0.155026,96758.0,96754.0,0.01103701]
[1739042775009,0.003,96756.0,96748.0,0.155041]
[1739042775164,0.003,96756.0,96747.0,0.155043]
[1739042775365,0.003,96756.0,96748.0,0.0110437]
[1739042775909,0.15558178,96759.0,96748.0,0.0110437]
[1739042776050,0.155026,96758.0,96745.0,0.484345]
[1739042776256,0.155026,96758.0,96751.0,0.00022407]
[1739042776450,0.00055778,96759.0,96751.0,0.00022407]
[1739042776660,0.00055778,96759.0,96752.0,0.01103924]
[1739042776863,0.155026,96758.0,96752.0,0.01103924]
[1739042777067,0.158026,96758.0,96751.0,0.00022407]
[1739042777265,0.003,96758.0,96751.0,0.00022407]
[1739042777564,0.003,96758.0,96752.0,0.01103924]
[1739042777777,0.003,96758.0,96753.0,0.15606645]
[1739042777947,0.00155778,96759.0,96754.0,0.13433701]
[1739042778087,0.00055778,96759.0,96754.0,0.13433701]
[1739042778827,0.00055778,96759.0,96754.0,0.28936801]
[1739042779227,0.00055778,96759.0,96755.0,0.12653707]
[1739042779614,0.00055778,96759.0,96756.0,0.01103478]
[1739042780285,0.00055778,96759.0,96758.0,0.01]
[1739042780494,0.00055778,96759.0,96756.0,0.01103478]
[1739042780722,0.00155778,96759.0,96758.0,0.01103254]
[1739042780870,0.00155778,96759.0,96757.0,0.01103366]
[1739042781074,0.00155778,96759.0,96758.0,0.01103254]
[1739042781486,0.00055778,96759.0,96755.0,0.45750465]
[1739042781685,0.00055778,96759.0,96758.0,0.01103254]
[1739042781886,0.00055778,96759.0,96756.0,0.157029]
[1739042782090,0.00055778,96759.0,96758.0,0.01103254]